bitfinex-derivatives/quotes_BTCF0:USTF0_20240905
["timestamp","ask_amount","ask_price","bid_price","bid_amount"]
[1725547100991,0.087438,57186.0,57182.0,0.3]
[1725547101196,0.087438,57186.0,57185.0,0.3608]
[1725547101396,0.08743,57191.0,57186.0,0.087437]
[1725547101597,0.08743,57191.0,57190.0,0.3648]
[1725547102894,0.08743,57191.0,57190.0,0.3658]
[1725547103498,0.09243,57191.0,57190.0,0.3668]
[1725547103794,0.005,57191.0,57190.0,0.6668]
[1725547103998,0.005,57191.0,57190.0,0.754232]
[1725547104200,0.005,57191.0,57190.0,1.966224]
[1725547104698,0.005,57191.0,57190.0,1.666224]
[1725547105203,0.005,57191.0,57190.0,1.58150943]
[1725547105395,0.005,57191.0,57190.0,1.58250943]
[1725547105598,0.005,57191.0,57190.0,1.66994143]
[1725547105798,0.00016894,57194.0,57193.0,0.087427]
[1725547106005,0.087398,57212.0,57209.0,0.087402]
[1725547106190,0.0874,57211.0,57203.0,0.3608]
[1725547106394,0.3608,57207.0,57195.0,0.3608]
[1725547106587,0.2433,57206.0,57195.0,0.3608]
[1725547106790,0.2433,57206.0,57195.0,0.6608]
[1725547107000,0.2433,57206.0,57195.0,0.66106238]
[1725547107196,0.2433,57206.0,57195.0,0.36106238]
[1725547107197,0.087423,57196.0,57195.0,0.36106238]
[1725547108390,0.087423,57196.0,57195.0,0.66106238]
[1725547109002,0.087423,57196.0,57195.0,0.66206238]
[1725547109708,0.087423,57196.0,57195.0,0.66306238]
[1725547110201,0.087423,57196.0,57195.0,0.66206238]
[1725547110500,0.087423,57196.0,57195.0,0.66306238]
[1725547110697,0.087417,57200.0,57195.0,0.66306238]
[1725547110904,0.087417,57200.0,57199.0,0.3]
[1725547111093,0.087411,57204.0,57199.0,0.304]
[1725547111289,0.087411,57204.0,57203.0,0.391412]
[1725547111489,0.087411,57204.0,57203.0,0.304]
[1725547111799,0.087411,57204.0,57203.0,0.004]
[1725547112100,0.174822,57204.0,57203.0,0.004]
[1725547112300,0.262233,57204.0,57203.0,0.004]
[1725547112509,0.174846,57196.0,57195.0,0.00226238]
[1725547112695,0.262269,57196.0,57195.0,0.00226238]
[1725547112889,0.174878,57185.0,57184.0,0.00369846]
[1725547113092,0.087441,57184.0,57183.0,0.36168]
[1725547113290,0.087441,57184.0,57183.0,0.3608]
[1725547113595,0.087441,57184.0,57183.0,0.66454291]
[1725547113790,0.174882,57184.0,57183.0,0.3608]
[1725547114290,0.087441,57184.0,57183.0,0.3618]
[1725547115794,0.174882,57184.0,57183.0,0.3628]
[1725547115992,0.087441,57184.0,57183.0,0.3618]
[1725547116207,0.087441,57184.0,57183.0,0.3628]
[1725547116406,0.174882,57184.0,57183.0,0.3618]
[1725547116703,0.175882,57184.0,57183.0,0.001]
[1725547116899,0.264323,57184.0,57183.0,0.002]
[1725547117204,0.176882,57184.0,57183.0,0.002]
[1725547117390,0.174922,57171.0,57170.0,0.3608]
[1725547117594,0.474922,57171.0,57170.0,0.3608]
[1725547118809,0.174922,57171.0,57170.0,0.3608]
[1725547119399,0.0018,57174.0,57170.0,0.3608]
[1725547119594,0.087457,57174.0,57173.0,0.391458]
[1725547119811,0.00026238,57176.0,57173.0,0.304]
[1725547120103,0.00026238,57176.0,57175.0,0.3628]
[1725547120301,0.08771538,57176.0,57175.0,0.450255]
[1725547120703,0.29722642,57176.0,57175.0,0.002]
[1725547121412,0.29722642,57176.0,57175.0,0.089455]
[1725547122201,0.29722642,57176.0,57175.0,0.00562203]
[1725547122698,0.29922642,57176.0,57175.0,0.00562203]
[1725547122899,0.30222642,57176.0,57175.0,0.00662203]
[1725547123196,0.21477342,57176.0,57175.0,0.09407703]
[1725547124009,0.98184006,57176.0,57173.0,0.25408156]
[1725547124210,0.82701478,57176.0,57175.0,0.001]
[1725547124409,0.95363071,57176.0,57175.0,0.001]
[1725547124612,0.95263071,57176.0,57175.0,0.001]
[1725547125411,0.95263071,57176.0,57175.0,0.088455]
[1725547125606,1.04008371,57176.0,57175.0,0.001]
[1725547126001,1.03708371,57176.0,57175.0,0.301]
[1725547126200,1.04108371,57176.0,57175.0,0.388455]
[1725547126720,0.94963071,57176.0,57175.0,0.387455]
[1725547127014,1.04108371,57176.0,57175.0,0.388455]
[1725547128602,0.27401707,57176.0,57175.0,0.388455]
[1725547128806,0.14740114,57176.0,57175.0,0.388455]
[1725547129111,0.14740114,57176.0,57175.0,0.001]
[1725547129112,0.23485414,57176.0,57175.0,0.001]
[1725547129501,0.09271538,57176.0,57175.0,0.001]
[1725547129717,0.09271538,57176.0,57174.0,0.3]
[1725547129718,0.087455,57175.0,57174.0,0.387455]
[1725547129918,0.088455,57175.0,57174.0,0.387455]
[1725547131013,0.091455,57175.0,57174.0,0.388455]
[1725547132108,0.091455,57175.0,57174.0,0.301]
[1725547132710,0.092455,57175.0,57174.0,0.301]
[1725547132913,0.17991,57175.0,57174.0,0.301]
[1725547133819,0.092455,57175.0,57174.0,0.301]
[1725547134303,0.17991,57175.0,57174.0,0.301]
[1725547137917,0.17991,57175.0,57174.0,0.241]
[1725547140010,0.267365,57175.0,57174.0,0.001]
[1725547140207,0.174936,57166.0,57165.0,0.00026238]
[1725547140616,0.264404,57166.0,57165.0,0.00026238]
[1725547141116,1.389204,57166.0,57165.0,0.00026238]
[1725547141519,1.389204,57166.0,57165.0,0.00426238]
[1725547141520,1.46255663,57166.0,57165.0,0.00426238]
[1725547141821,1.39280936,57166.0,57165.0,0.00426238]
[1725547142021,0.86800936,57166.0,57165.0,0.00426238]
[1725547142220,0.089468,57166.0,57165.0,0.00426238]
[1725547142529,0.089468,57166.0,57165.0,1.66480238]
[1725547142530,0.002,57166.0,57165.0,1.66480238]
[1725547142719,0.002,57166.0,57165.0,1.73352803]
[1725547143025,0.002,57166.0,57165.0,1.66480238]
[1725547143221,0.002,57166.0,57165.0,0.97733238]
[1725547143522,0.002,57166.0,57165.0,1.57733238]
[1725547143708,0.002,57166.0,57165.0,0.97733238]
[1725547143905,0.002,57166.0,57165.0,1.57733238]
[1725547144111,0.002,57166.0,57165.0,0.97733238]
[1725547144310,0.002,57166.0,57165.0,1.57733238]
[1725547144518,0.002,57166.0,57165.0,0.97733238]
[1725547144712,0.002,57166.0,57165.0,1.58105398]
[1725547145118,0.002,57166.0,57165.0,0.98105398]
[1725547145316,0.002,57166.0,57165.0,1.58105398]
[1725547145514,0.002,57166.0,57165.0,0.98105398]
[1725547146209,0.002,57166.0,57165.0,1.58105398]
[1725547146924,0.002,57166.0,57165.0,0.16451217]
[1725547147123,0.002,57166.0,57165.0,0.45625398]
[1725547149117,0.002,57166.0,57165.0,0.52531217]
[1725547149516,0.002,57166.0,57165.0,0.45625398]
[1725547149713,0.002,57166.0,57165.0,0.52531217]
[1725547150031,0.002,57166.0,57165.0,1.66852398]
[1725547150423,0.002,57166.0,57165.0,1.75443105]
[1725547150929,0.002,57166.0,57165.0,1.88768867]
[1725547151118,0.002,57166.0,57165.0,1.97515867]
[1725547151313,0.002,57166.0,57165.0,1.88768867]
[1725547151520,0.002,57166.0,57165.0,1.2017816]
[1725547151826,0.002,57166.0,57165.0,1.28816246]
[1725547152021,0.002,57166.0,57165.0,0.54372398]
[1725547152419,0.002,57166.0,57165.0,1.84237484]
[1725547152730,0.002,57166.0,57165.0,1.97563108]
[1725547153024,0.00026238,57176.0,57175.0,0.17491]
[1725547153228,0.00026238,57176.0,57175.0,0.83771]
[1725547153524,0.00026238,57176.0,57175.0,0.750255]
[1725547153929,0.00026238,57176.0,57175.0,0.450255]
[1725547154230,0.18016838,57176.0,57175.0,0.003]
[1725547154425,0.24994079,57176.0,57175.0,0.003]
[1725547154627,0.69396838,57176.0,57175.0,0.003]
[1725547154820,0.69496838,57176.0,57175.0,0.003]
[1725547155824,1.23026506,57176.0,57175.0,0.003]
[1725547156020,1.171577,57176.0,57175.0,0.003]
[1725547156927,2.296297,57176.0,57175.0,0.003]
[1725547157521,2.27157289,57176.0,57175.0,0.003]
[1725547157722,2.29992968,57176.0,57175.0,0.003]
[1725547158232,2.04757068,57176.0,57165.0,0.00026238]
[1725547158537,2.04757068,57176.0,57154.0,0.05182872]
[1725547158538,0.087485,57155.0,57154.0,0.05182872]
[1725547158739,0.3628,57155.0,57151.0,0.05182872]
[1725547158924,0.002,57152.0,57151.0,0.05182872]
[1725547159121,0.002,57152.0,57147.0,0.44302143]
[1725547159122,0.08749,57152.0,57147.0,0.44302143]
[1725547159333,0.087491,57151.0,57147.0,0.44302143]
[1725547159638,0.087491,57151.0,57147.0,0.39109918]
[1725547159639,0.002,57148.0,57147.0,0.39109918]
[1725547160534,0.00226238,57155.0,57147.0,1.48048343]
[1725547160734,0.00226238,57155.0,57154.0,0.002]
[1725547160932,0.00126238,57155.0,57154.0,0.002]
[1725547161131,0.00126238,57155.0,57154.0,0.089487]
[1725547161444,0.00126238,57155.0,57154.0,0.356187]
[1725547161827,0.00126238,57155.0,57154.0,0.002]
[1725547162023,0.00526238,57155.0,57154.0,0.002]
[1725547162228,0.09274738,57155.0,57154.0,0.002]
[1725547163640,0.09374738,57155.0,57154.0,0.002]
[1725547164025,0.00726238,57155.0,57154.0,0.090487]
[1725547164431,0.00726238,57155.0,57154.0,1.559454]
[1725547164826,0.00126238,57155.0,57154.0,1.52388925]
[1725547165028,0.01026238,57155.0,57154.0,1.47565083]
[1725547165427,0.01026238,57155.0,57154.0,0.87665083]
[1725547165428,0.02426238,57155.0,57154.0,0.87665083]
[1725547166038,0.11174738,57155.0,57154.0,0.35177083]
[1725547166333,0.02426238,57155.0,57154.0,1.47665083]
[1725547166938,0.02426238,57155.0,57154.0,0.35177083]
[1725547167640,0.11174738,57155.0,57154.0,0.00768383]
[1725547167827,0.11174738,57155.0,57154.0,0.004]
[1725547168433,0.19923238,57155.0,57154.0,0.004]
[1725547168748,0.19923238,57155.0,57144.0,0.00026238]
[1725547168749,1.14914238,57155.0,57144.0,0.00026238]
[1725547168946,0.089501,57145.0,57144.0,0.00026238]
[1725547169251,0.177002,57145.0,57144.0,0.00026238]
[1725547169539,0.176002,57145.0,57144.0,0.00026238]
[1725547170440,0.179002,57145.0,57144.0,0.00026238]
[1725547171247,0.179002,57145.0,57144.0,0.00126238]
[1725547171544,0.179002,57145.0,57126.0,0.41272225]
[1725547171545,0.087502,57144.0,57126.0,0.41272225]
[1725547171746,0.087502,57144.0,57124.0,0.63710175]
[1725547171747,0.087531,57125.0,57124.0,0.00088]
[1725547171934,0.087531,57125.0,57114.0,0.31172225]
[1725547171935,0.087538,57121.0,57114.0,0.31172225]
[1725547172137,0.087538,57121.0,57119.0,0.3608]
[1725547172331,0.3628,57127.0,57119.0,0.74834]
[1725547172629,0.087531,57125.0,57120.0,0.087539]
[1725547172832,0.3628,57127.0,57122.0,0.3]
[1725547173041,0.450328,57127.0,57126.0,0.002]
[1725547174142,0.3638,57127.0,57126.0,0.002]
[1725547174649,0.3638,57127.0,57126.0,0.003]
[1725547174830,0.3638,57127.0,57126.0,0.09053]
[1725547175340,0.002,57127.0,57126.0,0.39453]
[1725547176137,0.002,57127.0,57126.0,1.51969]
[1725547177643,0.002,57127.0,57126.0,0.007]
[1725547177834,0.389528,57127.0,57126.0,0.007]
[1725547178040,0.477056,57127.0,57126.0,0.007]
[1725547178347,0.477056,57127.0,57117.0,0.00026238]
[1725547178348,0.087537,57121.0,57117.0,0.00026238]
[1725547178543,0.475084,57118.0,57117.0,0.00026238]
[1725547178850,0.477084,57118.0,57117.0,0.00026238]
[1725547179346,0.477084,57118.0,57117.0,0.08780538]
[1725547179347,0.002,57118.0,57117.0,0.08780538]
[1725547179751,0.090542,57118.0,57117.0,0.09580538]
[1725547180445,0.089542,57118.0,57117.0,0.09180538]
[1725547181242,0.002,57118.0,57117.0,0.09180538]
[1725547182038,0.003,57118.0,57117.0,0.09180538]
[1725547182251,0.002,57127.0,57126.0,0.08753]
[1725547182455,0.002,57127.0,57126.0,0.38953]
[1725547182952,0.002,57127.0,57126.0,0.91469]
[1725547183142,0.002,57127.0,57126.0,1.17019]
[1725547183340,0.00026238,57129.0,57126.0,1.17019]
[1725547183341,0.00026238,57129.0,57128.0,0.087527]
[1725547183541,0.00026238,57129.0,57128.0,0.089527]
[1725547183944,0.00026238,57129.0,57128.0,0.177054]
[1725547184144,0.00026238,57129.0,57128.0,0.702174]
[1725547184543,0.00026238,57129.0,57128.0,1.302174]
[1725547185067,0.6889,57147.0,57128.0,1.1318046]
[1725547185351,0.3,57153.0,57149.0,0.087493]
[1725547185352,0.087491,57152.0,57149.0,0.087493]
[1725547185551,0.087491,57152.0,57146.0,0.002]
[1725547185552,0.087491,57152.0,57151.0,0.002]
[1725547185949,0.36272,57153.0,57151.0,0.002]
[1725547185950,0.3608,57153.0,57151.0,0.002]
[1725547186155,0.3608,57153.0,57152.0,0.08949]
[1725547186343,0.00026238,57157.0,57152.0,0.08949]
[1725547186545,0.08774438,57157.0,57156.0,0.002]
[1725547188157,0.10874438,57157.0,57156.0,0.003]
[1725547188959,0.93362438,57157.0,57156.0,0.003]
[1725547189746,0.09774438,57157.0,57156.0,0.002]
[1725547189950,0.10974438,57157.0,57156.0,0.003]
[1725547190353,0.09974438,57157.0,57156.0,0.003]
[1725547190556,0.10974438,57157.0,57156.0,0.003]
[1725547190750,0.11074438,57157.0,57156.0,0.003]
[1725547191257,0.02326238,57157.0,57156.0,0.450284]
[1725547191456,0.01226238,57157.0,57156.0,0.451284]
[1725547191650,0.02326238,57157.0,57156.0,0.451284]
[1725547192955,0.01126238,57157.0,57156.0,0.450284]
[1725547193153,0.02226238,57157.0,57156.0,0.45489661]
[1725547193358,0.02226238,57157.0,57156.0,0.54238061]
[1725547193559,0.02226238,57157.0,57156.0,1.29478061]
[1725547197948,0.02226238,57157.0,57156.0,1.20729661]
[1725547198452,0.02226238,57157.0,57156.0,0.09409661]
[1725547198648,0.02226238,57157.0,57156.0,0.45489661]
[1725547199752,0.10974438,57157.0,57156.0,0.00661261]
[1725547200075,0.10974438,57157.0,57156.0,0.003]
[1725547200076,0.19722638,57157.0,57156.0,0.003]
[1725547200450,0.28470838,57157.0,57156.0,0.003]
[1725547200655,0.087498,57147.0,57146.0,0.00226238]
[1725547200857,0.176996,57147.0,57146.0,0.00226238]
[1725547201065,0.176996,57147.0,57133.0,0.087518]
[1725547201066,1.12696,57147.0,57133.0,0.087518]
[1725547201255,0.002,57137.0,57135.0,0.3]
[1725547201566,0.002,57137.0,57136.0,0.448314]
[1725547201763,0.3628,57137.0,57127.0,0.3]
[1725547201965,0.087536,57122.0,57120.0,0.3608]
[1725547202263,0.087545,57116.0,57115.0,0.00026238]
[1725547202460,0.002,57116.0,57115.0,0.00401578]
[1725547202759,0.002,57116.0,57115.0,0.00026238]
[1725547202961,0.3608,57122.0,57115.0,0.00026238]
[1725547202962,0.6538,57122.0,57115.0,0.00026238]
[1725547203154,0.087544,57117.0,57115.0,0.00026238]
[1725547203753,0.001,57116.0,57115.0,0.00826238]
[1725547204455,0.087544,57117.0,57115.0,0.00826238]
[1725547204456,0.001,57117.0,57115.0,0.00826238]
[1725547204655,0.001,57117.0,57116.0,0.002]
[1725547205449,0.001,57117.0,57116.0,0.089545]
[1725547205662,0.36106238,57127.0,57116.0,0.3628]
[1725547205663,0.00026238,57127.0,57116.0,0.3628]
[1725547205858,0.00026238,57127.0,57126.0,0.302]
[1725547206349,0.08779038,57127.0,57126.0,0.002]
[1725547206852,0.08779038,57127.0,57116.0,0.3618]
[1725547206853,0.087543,57117.0,57116.0,0.001]
[1725547207053,0.087543,57117.0,57101.0,0.06063532]
[1725547207054,0.087566,57102.0,57098.0,0.087573]
[1725547207358,0.087552,57112.0,57098.0,0.09125068]
[1725547207359,0.087569,57101.0,57098.0,0.09125068]
[1725547207588,0.448371,57099.0,57098.0,0.00367768]
[1725547207767,0.6608,57099.0,57075.0,0.3608]
[1725547208062,0.96949947,57101.0,57071.0,0.05192225]
[1725547208063,0.002,57076.0,57071.0,0.05192225]
[1725547208262,0.002,57076.0,57068.0,0.00026263]
[1725547208263,0.002,57072.0,57068.0,0.00026263]
[1725547210058,0.002,57076.0,57071.0,0.3608]
[1725547210262,0.002,57076.0,57075.0,0.002]
[1725547211156,0.302,57076.0,57075.0,0.002]
[1725547211461,0.002,57076.0,57075.0,0.002]
[1725547211661,0.087605,57077.0,57075.0,0.002]
[1725547211873,0.00026263,57079.0,57076.0,0.002]
[1725547212064,0.08786463,57079.0,57078.0,0.002]
[1725547212361,0.087605,57077.0,57076.0,0.002]
[1725547212569,0.089605,57077.0,57076.0,0.002]
[1725547213159,0.087609,57075.0,57071.0,0.34748319]
[1725547213357,0.002,57072.0,57071.0,0.34748319]
[1725547213560,0.00026263,57079.0,57071.0,0.34748319]
[1725547213754,0.00026263,57079.0,57078.0,0.087603]
[1725547213955,0.00026263,57079.0,57078.0,0.089603]
[1725547214456,0.00026263,57079.0,57077.0,0.179303]
[1725547214656,0.00026263,57079.0,57078.0,0.087603]
[1725547214856,0.087588,57088.0,57077.0,0.179303]
[1725547214857,0.087582,57092.0,57077.0,0.179303]
[1725547215061,0.087584,57091.0,57085.0,0.3608]
[1725547215365,0.087585,57091.0,57087.0,0.087588]
[1725547215556,0.087585,57091.0,57085.0,0.3608]
[1725547215762,0.002,57086.0,57085.0,0.3608]
[1725547215962,0.002,57086.0,57080.0,0.00026263]
[1725547216157,0.387599,57081.0,57080.0,0.00026263]
[1725547216357,0.089599,57081.0,57080.0,0.00026263]
[1725547216665,0.002,57081.0,57080.0,0.00026263]
[1725547216868,0.002,57081.0,57080.0,0.08786263]
[1725547217059,0.002,57081.0,57080.0,0.44866263]
[1725547217365,0.002,57081.0,57080.0,1.57422263]
[1725547217573,0.08784563,57091.0,57090.0,0.087585]
[1725547217574,0.00026263,57091.0,57090.0,0.087585]
[1725547217763,0.00026263,57091.0,57090.0,0.002]
[1725547217969,0.08784563,57091.0,57090.0,0.002]
[1725547218164,0.38784563,57091.0,57090.0,0.002]
[1725547218663,0.08784563,57091.0,57090.0,0.002]
[1725547219065,0.00026263,57091.0,57090.0,0.089585]
[1725547219261,0.00026263,57091.0,57090.0,0.389585]
[1725547219461,0.00026263,57091.0,57090.0,1.515065]
[1725547219676,0.00026263,57091.0,57090.0,0.389585]
[1725547220768,0.00026263,57091.0,57090.0,0.39321203]
[1725547221068,0.00026263,57091.0,57090.0,0.00562703]
[1725547221069,0.09584563,57091.0,57090.0,0.00562703]
[1725547221265,0.09584563,57091.0,57090.0,0.09321203]
[1725547221266,0.00826263,57091.0,57090.0,0.09321203]
[1725547221969,0.00826263,57091.0,57090.0,1.21869203]
[1725547222365,0.00826263,57091.0,57090.0,0.09321203]
[1725547223064,0.09584563,57091.0,57090.0,0.00562703]
[1725547223262,0.00826263,57091.0,57090.0,0.09321203]
[1725547223672,0.00826263,57091.0,57090.0,0.39321203]
[1725547223866,0.00826263,57091.0,57090.0,1.00627703]
[1725547224168,0.00826263,57091.0,57090.0,1.51869203]
[1725547224763,0.00826263,57091.0,57090.0,0.09321203]
[1725547224958,0.09584563,57091.0,57090.0,0.00562703]
[1725547225164,0.83622863,57091.0,57090.0,0.003]
[1725547225765,0.087599,57081.0,57080.0,0.00026263]
[1725547225960,0.088599,57081.0,57080.0,0.00026263]
[1725547227664,0.176198,57081.0,57080.0,0.00026263]
[1725547228171,0.088599,57081.0,57080.0,0.00026263]
[1725547228662,0.087611,57073.0,57063.0,0.05192225]
[1725547228876,0.002,57064.0,57063.0,0.087625]
[1725547229057,0.002,57064.0,57063.0,0.387625]
[1725547229260,0.002,57064.0,57063.0,0.43954725]
[1725547229463,0.002,57064.0,57063.0,0.39133587]
[1725547229666,0.002,57064.0,57063.0,0.44325812]
[1725547229870,0.002,57064.0,57063.0,0.09133587]
[1725547230174,0.002,57064.0,57063.0,0.44325812]
[1725547231166,0.002,57064.0,57063.0,0.96897812]
[1725547231368,0.002,57064.0,57063.0,1.51705587]
[1725547231567,0.00026287,57069.0,57068.0,0.087619]
[1725547231876,0.00026287,57069.0,57068.0,0.748419]
[1725547232065,0.00026287,57069.0,57068.0,1.94509896]
[1725547232267,0.08759,57087.0,57082.0,0.087597]
[1725547232469,0.08759,57087.0,57084.0,0.002]
[1725547233177,0.087591,57086.0,57084.0,0.002]
[1725547233770,0.25492479,57090.0,57084.0,0.089594]
[1725547233771,0.087588,57088.0,57084.0,0.089594]
[1725547233963,0.08759,57087.0,57084.0,0.089594]
[1725547234165,0.087588,57088.0,57084.0,0.089594]
[1725547234376,0.25116287,57090.0,57085.0,0.087592]
[1725547234581,0.25116287,57090.0,57089.0,0.002]
[1725547234775,0.33874787,57090.0,57089.0,0.002]
[1725547235875,0.34374787,57090.0,57089.0,0.002]
[1725547236568,1.55681287,57090.0,57089.0,0.002]
[1725547236765,1.55681287,57090.0,57079.0,0.00026287]
[1725547236766,0.087599,57081.0,57080.0,0.05180236]
[1725547236976,0.1752,57080.0,57079.0,0.00026287]
[1725547237279,0.70276,57080.0,57079.0,0.00026287]
[1725547237776,0.1772,57080.0,57079.0,0.00026287]
[1725547238078,0.7028,57080.0,57079.0,0.00026287]
[1725547238772,0.70649826,57080.0,57079.0,0.00026287]
[1725547239477,0.70549826,57080.0,57079.0,0.00026287]
[1725547239964,0.70549826,57080.0,57079.0,0.05206523]
[1725547240369,0.087611,57073.0,57072.0,0.03684704]
[1725547240577,0.087611,57073.0,57072.0,0.12324597]
[1725547240878,0.087606,57076.0,57072.0,0.03684704]
[1725547241069,0.00569826,57080.0,57072.0,0.03684704]
[1725547241070,0.002,57073.0,57072.0,0.03684704]
[1725547241272,0.00568001,57081.0,57080.0,0.0876]
[1725547241476,0.002,57081.0,57080.0,0.67049452]
[1725547241677,0.002,57081.0,57080.0,0.58387015]
[1725547242271,0.00026287,57082.0,57081.0,0.087599]
[1725547242471,0.00026287,57082.0,57081.0,0.089599]
[1725547242676,0.00026287,57082.0,57081.0,0.22306516]
[1725547242989,0.00026287,57082.0,57081.0,0.30966339]
[1725547243368,0.00026287,57082.0,57081.0,0.22306511]
[1725547243571,0.087591,57086.0,57083.0,0.087594]
[1725547243778,0.087589,57088.0,57087.0,0.087588]
[1725547243985,0.087589,57088.0,57087.0,0.089588]
[1725547244381,0.087589,57088.0,57087.0,0.087588]
[1725547245093,0.087591,57086.0,57085.0,0.3628]
[1725547245281,0.087591,57086.0,57085.0,0.002]
[1725547245282,0.477182,57086.0,57085.0,0.002]
[1725547245493,1.690293,57086.0,57085.0,0.002]
[1725547246181,1.69399971,57086.0,57085.0,0.002]
[1725547246383,1.69299971,57086.0,57085.0,0.002]
[1725547247084,1.70499971,57086.0,57085.0,0.003]
[1725547247686,1.61740871,57086.0,57085.0,0.003]
[1725547248388,1.01740871,57086.0,57085.0,0.003]
[1725547248985,1.61740871,57086.0,57085.0,0.003]
[1725547249884,1.70499971,57086.0,57085.0,0.003]
[1725547250583,1.70499971,57086.0,57073.0,0.05194759]
[1725547250584,0.175218,57074.0,57073.0,0.05194759]
[1725547250786,0.175218,57074.0,57063.0,0.46474925]
[1725547250787,0.087614,57071.0,57070.0,0.05194759]
[1725547250986,0.175232,57070.0,57069.0,0.05194759]
[1725547251179,0.175232,57070.0,57069.0,0.087617]
[1725547251180,0.089616,57070.0,57069.0,0.087617]
[1725547251382,0.087617,57069.0,57064.0,0.08659427]
[1725547251581,0.089623,57065.0,57064.0,0.087623]
[1725547252687,0.3608,57068.0,57067.0,0.08762]
[1725547252998,0.3608,57068.0,57067.0,0.08962]
[1725547253685,0.00026287,57070.0,57069.0,0.087617]
[1725547253883,0.00026287,57070.0,57069.0,0.089617]
[1725547254388,0.00026287,57070.0,57069.0,0.177234]
[1725547254685,0.00026287,57070.0,57069.0,0.2231094]
[1725547256188,0.00026287,57070.0,57069.0,0.31355811]
[1725547256386,0.00126287,57070.0,57069.0,0.31455811]
[1725547256588,0.3608,57082.0,57069.0,1.35351114]
[1725547256796,0.26702159,57088.0,57081.0,0.3628]
[1725547256983,0.44811847,57096.0,57087.0,0.05403058]
[1725547256984,0.06970193,57096.0,57087.0,0.05403058]
[1725547257292,0.0018,57097.0,57095.0,0.3]
[1725547257489,0.089374,57097.0,57095.0,0.3]
[1725547257675,0.089374,57097.0,57096.0,0.002]
[1725547257991,0.475148,57097.0,57096.0,0.002]
[1725547258377,1.600588,57097.0,57096.0,0.002]
[1725547259281,0.475148,57097.0,57096.0,0.002]
[1725547259683,0.489148,57097.0,57096.0,0.002]
[1725547260291,0.014,57097.0,57096.0,0.089576]
[1725547260484,0.101574,57097.0,57096.0,0.002]
[1725547260687,0.189148,57097.0,57096.0,0.002]
[1725547261082,0.101574,57097.0,57096.0,0.002]
[1725547261387,0.014,57097.0,57096.0,0.089576]
[1725547261782,0.014,57097.0,57096.0,0.389576]
[1725547262298,0.00026287,57102.0,57101.0,0.087568]
[1725547262487,0.00026287,57102.0,57101.0,0.750368]
[1725547263487,0.26702159,57116.0,57115.0,0.087547]
[1725547263685,0.087542,57119.0,57115.0,0.002]
[1725547263987,0.087542,57119.0,57118.0,0.302]
[1725547264293,0.087542,57119.0,57118.0,0.3]
[1725547264500,0.08779663,57124.0,57118.0,0.6608]
[1725547264792,0.087534,57123.0,57118.0,0.387541]
[1725547264996,0.00026263,57124.0,57118.0,0.3]
[1725547264997,0.087538,57121.0,57118.0,0.3]
[1725547265181,0.00026263,57124.0,57115.0,0.002]
[1725547265382,0.00026263,57124.0,57123.0,0.002]
[1725547265586,0.08779563,57124.0,57123.0,0.002]
[1725547265793,0.00026263,57124.0,57123.0,0.002]
[1725547266389,0.00026263,57124.0,57123.0,0.089534]
[1725547266590,0.01426263,57124.0,57123.0,0.090534]
[1725547267293,0.01426263,57124.0,57123.0,0.451334]
[1725547267888,0.01426263,57124.0,57123.0,0.3638]
[1725547268085,0.10179563,57124.0,57123.0,0.3638]
[1725547268289,1.22695563,57124.0,57123.0,0.003]
[1725547268791,1.30048863,57124.0,57123.0,0.003]
[1725547269093,0.61295563,57124.0,57123.0,0.003]
[1725547269485,0.08779563,57124.0,57123.0,0.003]
[1725547269685,0.62395563,57124.0,57123.0,0.003]
[1725547270087,0.71148863,57124.0,57123.0,0.003]
[1725547270283,0.087545,57116.0,57115.0,0.002]
[1725547270499,0.389545,57116.0,57115.0,0.002]
[1725547270794,1.60233,57116.0,57115.0,0.002]
[1725547271402,0.087548,57114.0,57113.0,0.00026263]
[1725547271601,0.448348,57114.0,57113.0,0.00026263]
[1725547271806,0.537896,57114.0,57113.0,0.00026263]
[1725547272298,0.536896,57114.0,57113.0,0.00026263]
[1725547272484,0.449348,57114.0,57113.0,0.00026263]
[1725547273103,0.459348,57114.0,57113.0,0.00126263]
[1725547273396,0.546896,57114.0,57113.0,0.00126263]
[1725547273893,0.536896,57114.0,57113.0,0.00026263]
[1725547274097,1.675176,57114.0,57113.0,0.00126263]
[1725547274291,0.087557,57108.0,57098.0,0.3608]
[1725547274490,0.087567,57102.0,57101.0,0.087568]
[1725547274898,0.087567,57102.0,57098.0,0.3608]
[1725547274899,0.087571,57099.0,57098.0,0.448372]
[1725547275197,0.089571,57099.0,57098.0,0.448372]
[1725547275694,0.089571,57099.0,57098.0,0.36443389]
[1725547275895,0.002,57099.0,57094.0,0.087578]
[1725547276290,0.002,57095.0,57094.0,0.087578]
[1725547276791,0.001,57095.0,57094.0,0.087578]
[1725547276996,0.001,57095.0,57094.0,0.09118737]
[1725547278004,0.08757,57100.0,57098.0,0.087573]
[1725547278198,0.08757,57100.0,57099.0,0.089571]
[1725547278511,0.00026263,57104.0,57103.0,0.087565]
[1725547278692,0.00026263,57104.0,57103.0,0.83793]
[1725547279002,0.00026263,57104.0,57103.0,0.83593]
[1725547279197,0.26702159,57109.0,57108.0,0.087557]
[1725547279390,0.087545,57116.0,57108.0,0.6608]
[1725547279592,0.087545,57116.0,57115.0,0.002]
[1725547279993,0.26702159,57123.0,57117.0,0.087543]
[1725547280304,0.087534,57123.0,57122.0,0.002]
[1725547281291,0.08779263,57126.0,57122.0,0.089536]
[1725547281600,0.08779263,57126.0,57125.0,0.002]
[1725547281900,0.00026263,57126.0,57125.0,0.002]
[1725547282103,0.00026263,57126.0,57125.0,0.089531]